fUST/lending_fUST_20240901
["ID","MTS","AMOUNT","RATE_DAILY","PERIOD"]
[336823851,1725192647227,-981.83,0.00026914,2]
[336823852,1725192647238,-500.0,0.00026914,2]
[336823853,1725192647248,-550.78,0.00026914,2]
[336823854,1725192647260,-500.0,0.00026914,2]
[336823855,1725192647269,-740.94,0.00026914,2]
[336823856,1725192647279,-500.0,0.00026914,2]
[336823857,1725192647288,-885.34,0.00026914,2]
[336823858,1725192647298,-289.16570609,0.00026914,2]
[336823859,1725192647307,-281.78249467,0.00026914,2]
[336823860,1725192647316,-658.94,0.00026914,2]
[336823861,1725192647326,-500.0,0.00026914,2]
[336823862,1725192647337,-500.0,0.00026914,2]
[336823863,1725192647346,-570.52,0.00026914,2]
[336823864,1725192647355,-502.06,0.00026914,2]
[336823865,1725192647365,-627.3139355,0.00026914,2]
[336823866,1725192647374,-1340.91,0.00026914,2]
[336823867,1725192647384,-500.0,0.00026914,2]
[336823868,1725192647393,-500.0,0.00026914,2]
[336823869,1725192647403,-3161.41,0.00026914,2]
[336823870,1725192647412,-500.0,0.00026914,2]
[336823871,1725192647422,-500.0,0.00026914,2]
[336823872,1725192647431,-500.0,0.00026914,2]
[336823873,1725192647441,-526.73,0.00026914,2]
[336823874,1725192647450,-500.0,0.00026914,2]
[336823875,1725192647460,-1089.79,0.00026914,2]
[336823876,1725192647469,-500.0,0.00026914,2]
[336823877,1725192647479,-590.52,0.00026914,2]
[336823878,1725192647488,-500.0,0.00026914,2]
[336823879,1725192647498,-588.48,0.00026914,2]
[336823880,1725192647507,-1007.91,0.00026914,2]
[336823881,1725192647517,-1497.44,0.00026914,2]
[336823882,1725192647526,-500.0,0.00026914,2]
[336823883,1725192647536,-2694.9,0.00026914,2]
[336823884,1725192647545,-6376.52,0.00026914,2]
[336823885,1725192647555,-277.07374285,0.00026914,2]
[336823886,1725192647564,-574.38,0.00026914,2]
[336823887,1725192647578,-559.85,0.00026914,2]
[336823888,1725192647588,-1097.2,0.00026914,2]
[336823889,1725192647598,-500.0,0.00026914,2]
[336823890,1725192647607,-500.0,0.00026914,2]
[336823891,1725192647618,-541.79,0.00026914,2]
[336823892,1725192647628,-500.0,0.00026914,2]
[336823893,1725192647638,-500.0,0.00026914,2]
[336823894,1725192647648,-532.06,0.00026914,2]
[336823895,1725192647658,-582.76,0.00026914,2]
[336823896,1725192647668,-500.0,0.00026914,2]
[336823897,1725192647678,-557.59,0.00026914,2]
[336823898,1725192647687,-684.32,0.00026914,2]
[336823899,1725192647697,-500.0,0.00026915,2]
[336823900,1725192647706,-500.0,0.00026915,2]
[336823901,1725192647716,-622.73,0.00026915,2]
[336823902,1725192647725,-742.03,0.00026915,2]
[336823903,1725192647735,-500.0,0.00026915,2]
[336823904,1725192647746,-500.0,0.00026915,2]
[336823905,1725192647755,-500.0,0.00026915,2]
[336823906,1725192647766,-500.0,0.00026915,2]
[336823907,1725192647777,-899.31,0.00026915,2]
[336823908,1725192647787,-2416.89,0.00026915,2]
[336823909,1725192647796,-500.0,0.00026915,2]
[336823910,1725192647806,-500.0,0.00026915,2]
[336823911,1725192647815,-500.0,0.00026915,2]
[336823912,1725192647825,-409.95872264,0.00026915,2]
[336823913,1725192647842,-90.04127736,0.00026915,2]
[336823914,1725192647852,-500.0,0.00026915,2]
[336823915,1725192647862,-1489.35,0.00026915,2]
[336823916,1725192647872,-775.25,0.00026915,2]
[336823917,1725192647882,-823.45,0.00026915,2]
[336823918,1725192647893,-1562.51,0.00026915,2]
[336823919,1725192647902,-567.23,0.00026915,2]
[336823920,1725192647911,-1007.33,0.00026915,2]
[336823921,1725192647921,-640.88,0.00026915,2]
[336823922,1725192647930,-915.62,0.00026915,2]
[336823923,1725192647940,-151.0,0.00026915,7]
[336823924,1725192647950,-500.0,0.00026916,2]
[336823925,1725192647960,-500.0,0.00026916,2]
[336823926,1725192647969,-321.70089215,0.00026916,2]
[336823927,1725192647979,-636.08952722,0.00026916,2]
[336823928,1725192647989,-500.0,0.00026916,2]
[336823929,1725192647998,-500.0,0.00026916,2]
[336823930,1725192648008,-500.0,0.00026916,2]
[336823931,1725192648018,-500.0,0.00026916,2]
[336823932,1725192648029,-736.33,0.00026916,2]
[336823933,1725192648039,-500.0,0.00026916,2]
[336823934,1725192648048,-500.0,0.00026916,2]
[336823935,1725192648058,-500.0,0.00026916,2]
[336823936,1725192648068,-622.79,0.00026916,2]
[336823937,1725192648077,-859.61,0.00026916,2]
[336823938,1725192648089,-831.63,0.00026916,2]
[336823939,1725192648098,-536.41366093,0.00026916,2]
[336823940,1725192648108,-681.9,0.00026916,2]
[336823941,1725192648118,-500.0,0.00026916,2]
[336823942,1725192648127,-500.0,0.00026916,2]
[336823943,1725192648138,-500.0,0.00026916,2]
[336823944,1725192648148,-500.0,0.00026916,2]
[336823945,1725192648159,-1070.57,0.00026916,2]
[336823946,1725192648169,-500.0,0.00026916,2]
[336823947,1725192648180,-550.01,0.00026916,2]
[336823948,1725192648190,-500.0,0.00026916,2]
[336823949,1725192648199,-594.2,0.00026916,2]
[336823950,1725192648209,-664.69,0.00026916,2]
[336823951,1725192648221,-500.0,0.00026916,2]
[336823952,1725192648231,-500.0,0.00026917,2]
[336823953,1725192648240,-408.79803057,0.00026917,2]
[336823954,1725192648251,-500.0,0.00026917,2]
[336823955,1725192648262,-789.57,0.00026917,2]
[336823956,1725192648272,-500.0,0.00026917,2]
[336823957,1725192648282,-1000.0,0.00027,27]
[336823958,1725192648291,-3730.77097161,0.00027046,2]
[336823959,1725192648302,-2132.33,0.00027186,2]
[336823960,1725192648312,-500.0,0.00027186,2]
[336823961,1725192648322,-500.0,0.00027186,2]
[336823962,1725192648333,-500.0,0.00027186,2]
[336823963,1725192648342,-500.0,0.00027186,2]
[336823964,1725192648352,-1593.92,0.00027186,2]
[336823965,1725192648362,-500.0,0.00027186,2]
[336823966,1725192648371,-1734.75,0.00027186,2]
[336823967,1725192648381,-1521.75,0.00027186,2]
[336823968,1725192648391,-782.07,0.00027186,2]
[336823969,1725192648401,-500.0,0.00027186,2]
[336823970,1725192648411,-2082.74,0.00027187,2]
[336823971,1725192648420,-12586.71,0.00027187,2]
[336823972,1725192648431,-2887.41,0.00027187,2]
[336823973,1725192648443,-689.77,0.00027187,2]
[336823974,1725192648454,-3325.33,0.00027187,2]
[336823975,1725192648465,-1584.26,0.00027187,2]
[336823976,1725192648474,-500.0,0.00027187,2]
[336823977,1725192648484,-604.73,0.00027187,2]
[336823978,1725192648494,-1027.88,0.00027187,2]
[336823979,1725192648504,-1132.07,0.00027187,2]
[336823980,1725192648515,-509.52,0.00027187,2]
[336823981,1725192648528,-500.0,0.00027187,2]
[336823982,1725192648539,-500.0,0.00027187,2]
[336823983,1725192648551,-415.73,0.00027187,2]
[336823984,1725192648560,-1950.43,0.00027187,2]
[336823985,1725192648571,-500.0,0.00027187,2]
[336823986,1725192648585,-936.19,0.00027187,2]
[336823987,1725192648598,-500.0,0.00027187,2]
[336823988,1725192648609,-544.81,0.00027187,2]
[336823989,1725192648619,-500.0,0.00027187,2]
[336823990,1725192648629,-946.89,0.00027187,2]
[336823991,1725192648639,-471.70874955,0.00027188,2]
[336823992,1725192648650,-981.83,0.00027188,2]
[336823993,1725192648661,-500.0,0.00027188,2]
[336823994,1725192648672,-550.78,0.00027188,2]
[336823995,1725192648682,-157.368868,0.00027188,7]
[336823996,1725192648693,-157.368868,0.00027188,7]
[336823997,1725192648703,-500.0,0.00027188,2]
[336823998,1725192648713,-740.94,0.00027188,2]
[336823999,1725192648723,-500.0,0.00027188,2]
[336824000,1725192648732,-885.34,0.00027188,2]
[336824001,1725192648742,-658.94,0.00027188,2]
[336824002,1725192648753,-500.0,0.00027188,2]
[336824003,1725192648764,-500.0,0.00027188,2]
[336824004,1725192648774,-570.52,0.00027188,2]
[336824005,1725192648783,-502.06,0.00027188,2]
[336824006,1725192648793,-1340.91,0.00027188,2]
[336824007,1725192648803,-500.0,0.00027188,2]
[336824008,1725192648813,-500.0,0.00027188,2]
[336824009,1725192648822,-3161.41,0.00027188,2]
[336824010,1725192648832,-500.0,0.00027188,2]
[336824011,1725192648842,-500.0,0.00027188,2]
[336824012,1725192648852,-500.0,0.00027188,2]
[336824013,1725192648862,-526.73,0.00027188,2]
[336824014,1725192648872,-500.0,0.00027188,2]
[336824015,1725192648883,-1089.79,0.00027188,2]
[336824016,1725192648896,-500.0,0.00027188,2]
[336824017,1725192648907,-590.52,0.00027188,2]
[336824018,1725192648917,-500.0,0.00027188,2]
[336824019,1725192648928,-588.48,0.00027188,2]
[336824020,1725192648940,-1007.91,0.00027188,2]
[336824021,1725192648949,-1497.44,0.00027188,2]
[336824022,1725192648959,-500.0,0.00027188,2]
[336824023,1725192648968,-2694.9,0.00027188,2]
[336824024,1725192648978,-6376.52,0.00027188,2]
[336824025,1725192648988,-574.38,0.00027188,2]
[336824026,1725192648998,-559.85,0.00027188,2]
[336824027,1725192649007,-1097.2,0.00027188,2]
[336824028,1725192649017,-500.0,0.00027188,2]
[336824029,1725192649027,-500.0,0.00027188,2]
[336824030,1725192649036,-541.79,0.00027188,2]
[336824031,1725192649047,-500.0,0.00027188,2]
[336824032,1725192649056,-500.0,0.00027188,2]
[336824033,1725192649066,-532.06,0.00027188,2]
[336824034,1725192649076,-582.76,0.00027188,2]
[336824035,1725192649086,-500.0,0.00027188,2]
[336824036,1725192649096,-557.59,0.00027188,2]
[336824037,1725192649106,-684.32,0.00027188,2]
[336824038,1725192649115,-500.0,0.00027189,2]
[336824039,1725192649125,-500.0,0.00027189,2]
[336824040,1725192649135,-622.73,0.00027189,2]
[336824041,1725192649144,-742.03,0.00027189,2]
[336824042,1725192649154,-500.0,0.00027189,2]
[336824043,1725192649164,-500.0,0.00027189,2]
[336824044,1725192649174,-512.98104301,0.00027189,2]
[336824045,1725192649184,-500.0,0.00027189,2]
[336824046,1725192649195,-899.31,0.00027189,2]
[336824047,1725192649205,-2416.89,0.00027189,2]
[336824048,1725192649216,-500.0,0.00027189,2]
[336824049,1725192649226,-214.75626322,0.00027189,2]
[336824050,1725192649236,-500.0,0.00027189,2]
[336824051,1725192649247,-500.0,0.00027189,2]
[336824052,1725192649256,-500.0,0.00027189,2]
[336824053,1725192649266,-1489.35,0.00027189,2]
[336824054,1725192649276,-775.25,0.00027189,2]
[336824055,1725192649286,-823.45,0.00027189,2]
[336824056,1725192649446,-1562.51,0.00027189,2]
[336824057,1725192649457,-567.23,0.00027189,2]
[336824058,1725192649466,-1007.33,0.00027189,2]
[336824059,1725192649476,-640.88,0.00027189,2]
[336824060,1725192649487,-915.62,0.00027189,2]
[336824061,1725192649497,-590.61495691,0.0002719,2]
[336824062,1725192649507,-500.0,0.0002719,2]
[336824063,1725192649516,-500.0,0.0002719,2]
[336824064,1725192649526,-500.0,0.0002719,2]
[336824065,1725192649536,-500.0,0.0002719,2]
[336824066,1725192649546,-500.0,0.0002719,2]
[336824067,1725192649555,-736.33,0.0002719,2]
[336824068,1725192649566,-500.0,0.0002719,2]
[336824069,1725192649580,-500.0,0.0002719,2]
[336824070,1725192649591,-500.0,0.0002719,2]
[336824071,1725192649600,-622.79,0.0002719,2]
[336824072,1725192649610,-859.61,0.0002719,2]
[336824073,1725192649621,-831.63,0.0002719,2]
[336824074,1725192649631,-681.9,0.0002719,2]
[336824075,1725192649640,-500.0,0.0002719,2]
[336824076,1725192649650,-500.0,0.0002719,2]
[336824077,1725192649660,-423.01607026,0.0002719,2]
[336824078,1725192649670,-500.0,0.0002719,2]
[336824079,1725192649680,-1070.57,0.0002719,2]
[336824080,1725192649691,-500.0,0.0002719,2]
[336824081,1725192649702,-550.01,0.0002719,2]
[336824082,1725192649713,-500.0,0.0002719,2]
[336824083,1725192649723,-594.2,0.0002719,2]
[336824084,1725192649735,-664.69,0.0002719,2]
[336824085,1725192649746,-500.0,0.0002719,2]
[336824086,1725192649755,-500.0,0.00027191,2]
[336824087,1725192649765,-500.0,0.00027191,2]
[336824088,1725192649775,-789.57,0.00027191,2]
[336824089,1725192649784,-500.0,0.00027191,2]
[336824090,1725192649794,-150.0,0.00027212,2]
[336824091,1725192649804,-3730.77097162,0.0002728,2]
[336824092,1725192649813,-1500.0,0.00027319,2]
[336824093,1725192649822,-500.0,0.00027384,2]
[336824094,1725192649832,-500.0,0.00027384,2]
[336824095,1725192649842,-500.0,0.0002739,2]
[336824096,1725192649852,-500.0,0.0002739,2]
[336824097,1725192649861,-500.0,0.0002739,2]
[336824098,1725192649872,-500.0,0.0002739,2]
[336824099,1725192649881,-500.0,0.0002739,2]
[336824100,1725192649890,-500.0,0.0002739,2]
[336824101,1725192649900,-1280.89,0.0002739,2]
[336824102,1725192649910,-500.0,0.0002739,2]
[336824103,1725192649920,-500.0,0.0002739,2]
[336824104,1725192649929,-500.0,0.0002739,2]
[336824105,1725192649938,-674.46,0.0002739,2]
[336824106,1725192649948,-500.0,0.0002739,2]
[336824107,1725192649957,-500.0,0.0002739,2]
[336824108,1725192649967,-763.59,0.0002739,2]
[336824109,1725192649977,-500.0,0.0002739,2]
[336824110,1725192649986,-500.0,0.0002739,2]
[336824111,1725192649997,-500.0,0.0002739,2]
[336824112,1725192650007,-500.0,0.0002739,2]
[336824113,1725192650016,-500.0,0.0002739,2]
[336824114,1725192650026,-500.0,0.0002739,2]
[336824115,1725192650035,-500.0,0.0002739,2]
[336824116,1725192650045,-500.0,0.0002739,2]
[336824117,1725192650055,-500.0,0.0002739,2]
[336824118,1725192650065,-500.0,0.0002739,2]
[336824119,1725192650077,-500.0,0.00027391,2]
[336824120,1725192650087,-518.04304816,0.00027391,2]
[336824121,1725192650098,-515.82330749,0.00027391,2]
[336824122,1725192650109,-500.0,0.00027391,2]
[336824123,1725192650120,-500.0,0.00027391,2]
[336824124,1725192650130,-500.0,0.00027391,2]
[336824125,1725192650144,-500.0,0.00027391,2]
[336824126,1725192650154,-500.0,0.00027391,2]
[336824127,1725192650164,-500.0,0.00027391,2]
[336824128,1725192650173,-502.620519,0.00027391,2]
[336824129,1725192650183,-500.0,0.00027391,2]
[336824130,1725192650192,-500.0,0.00027391,2]
[336824131,1725192650203,-500.0,0.00027391,2]
[336824132,1725192650214,-500.63447894,0.00027391,2]
[336824133,1725192650224,-500.0,0.00027391,2]
[336824134,1725192650234,-500.0,0.00027391,2]
[336824135,1725192650245,-500.0,0.00027391,2]
[336824136,1725192650255,-500.0,0.00027391,2]
[336824137,1725192650266,-500.0,0.00027391,2]
[336824138,1725192650276,-500.0,0.00027392,2]
[336824139,1725192650285,-500.0,0.00027393,2]
[336824140,1725192650295,-500.0,0.00027394,2]
[336824141,1725192650304,-500.0,0.00027395,2]
[336824142,1725192650314,-151.0,0.00027397,7]
[336824143,1725192650323,-151.0,0.00027397,7]
[336824144,1725192650333,-151.0,0.00027397,7]
[336824145,1725192650343,-151.0,0.00027397,7]
[336824146,1725192650352,-151.0,0.00027397,7]
[336824147,1725192650362,-151.0,0.00027397,7]
[336824148,1725192650371,-151.0,0.00027397,7]
[336824149,1725192650380,-151.0,0.00027397,7]
[336824150,1725192650389,-151.0,0.00027397,7]
[336824151,1725192650399,-663.755307,0.00027397,7]
[336824152,1725192650409,-663.755307,0.00027397,7]
[336824153,1725192650418,-151.0,0.00027397,7]
[336824154,1725192650428,-151.0,0.00027397,7]
[336824155,1725192650438,-151.0,0.00027397,7]
[336824156,1725192650448,-151.0,0.00027397,7]
[336824157,1725192650457,-151.0,0.00027397,7]
[336824158,1725192650468,-151.0,0.00027397,2]
[336824159,1725192650479,-151.0,0.00027397,7]
[336824160,1725192650488,-151.0,0.00027397,7]
[336824161,1725192650499,-151.0,0.00027397,7]
[336824162,1725192650508,-151.0,0.00027397,7]
[336824163,1725192650518,-151.0,0.00027397,7]
[336824164,1725192650528,-151.0,0.00027397,7]
[336824165,1725192650538,-151.0,0.00027397,7]
[336824166,1725192650547,-151.0,0.00027397,7]
[336824167,1725192650556,-241.328083,0.00027397,7]
[336824168,1725192650566,-241.328083,0.00027397,7]
[336824169,1725192650580,-241.328083,0.00027397,7]
[336824170,1725192650590,-241.328083,0.00027397,7]
[336824171,1725192650600,-407.316577,0.00027397,7]
[336824172,1725192650609,-407.316577,0.00027397,7]
[336824173,1725192650619,-407.316577,0.00027397,7]
[336824174,1725192650628,-407.316577,0.00027397,7]
[336824175,1725192650638,-206.134662,0.00027397,7]
[336824176,1725192650647,-206.134662,0.00027397,7]
[336824177,1725192650656,-206.134662,0.00027397,7]
[336824178,1725192650666,-206.134662,0.00027397,7]
[336824179,1725192650676,-151.0,0.00027397,7]
[336824180,1725192650685,-151.934486,0.00027397,7]
[336824181,1725192650695,-151.0,0.00027397,7]
[336824182,1725192650704,-151.0,0.00027397,7]
[336824183,1725192650713,-151.0,0.00027397,7]
[336824184,1725192650723,-151.0,0.00027397,7]
[336824185,1725192650732,-151.0,0.00027397,7]
[336824186,1725192650741,-192.262654,0.00027397,7]
[336824187,1725192650751,-192.262654,0.00027397,7]
[336824188,1725192650760,-192.262654,0.00027397,7]
[336824189,1725192650769,-151.0,0.00027397,3]
[336824190,1725192650778,-151.0,0.00027397,3]
[336824191,1725192650787,-151.0,0.00027397,3]
[336824192,1725192650797,-151.0,0.00027397,3]
[336824193,1725192650807,-151.0,0.00027397,7]
[336824194,1725192650817,-151.0,0.00027397,7]
[336824195,1725192650827,-151.0,0.00027397,7]
[336824196,1725192650836,-151.0,0.00027397,7]
[336824197,1725192650846,-151.0,0.00027397,7]
[336824198,1725192650855,-151.0,0.00027397,7]
[336824199,1725192650865,-151.0,0.00027397,7]
[336824200,1725192650876,-151.0,0.00027397,7]
[336824201,1725192650885,-254.935438,0.00027397,7]
[336824202,1725192650895,-254.935438,0.00027397,7]
[336824203,1725192650904,-151.0,0.00027397,7]
[336824204,1725192650913,-151.0,0.00027397,7]
[336824205,1725192650923,-254.935438,0.00027397,7]
[336824206,1725192650932,-254.935438,0.00027397,7]
[336824207,1725192650942,-152.541895,0.00027397,7]
[336824208,1725192650950,-151.0,0.00027397,7]
[336824209,1725192650960,-152.36822,0.00027397,7]
[336824210,1725192650969,-393.955064,0.00027397,7]
[336824211,1725192650978,-393.955064,0.00027397,7]
[336824212,1725192650988,-151.0,0.00027397,7]
[336824213,1725192650997,-151.0,0.00027397,7]
[336824214,1725192651007,-2247.14,0.000274,14]
[336824215,1725192651017,-151.0,0.00027453,7]
[336824216,1725192651027,-151.0,0.00027453,7]
[336824217,1725192651035,-151.0,0.00027453,7]
[336824218,1725192651045,-2132.33,0.0002746,15]
[336824219,1725192651054,-500.0,0.0002746,15]
[336824220,1725192651063,-500.0,0.0002746,15]
[336824221,1725192651073,-500.0,0.0002746,15]
[336824222,1725192651082,-500.0,0.0002746,15]
[336824223,1725192651092,-1593.92,0.0002746,15]
[336824224,1725192651101,-500.0,0.0002746,15]
[336824225,1725192651111,-1734.75,0.0002746,15]
[336824226,1725192651121,-1521.75,0.0002746,15]
[336824227,1725192651131,-782.07,0.0002746,15]
[336824228,1725192651140,-500.0,0.0002746,15]
[336824229,1725192651150,-2082.74,0.00027461,15]
[336824230,1725192651159,-12586.71,0.00027461,8]
[336824231,1725192651169,-2887.41,0.00027461,15]
[336824232,1725192651179,-689.77,0.00027461,15]
[336824233,1725192651188,-3325.33,0.00027461,15]
[336824234,1725192651198,-1584.26,0.00027461,15]
[336824235,1725192651207,-500.0,0.00027461,15]
[336824236,1725192651217,-604.73,0.00027461,15]
[336824237,1725192651226,-1027.88,0.00027461,15]
[336824238,1725192651236,-1132.07,0.00027461,15]
[336824239,1725192651246,-509.52,0.00027461,15]
[336824240,1725192651255,-500.0,0.00027461,15]
[336824241,1725192651264,-500.0,0.00027461,15]
[336824242,1725192651273,-151.0,0.00027461,7]
[336824243,1725192651282,-1950.43,0.00027461,15]
[336824244,1725192651292,-500.0,0.00027461,15]
[336824245,1725192651301,-936.19,0.00027461,15]
[336824246,1725192651310,-393.955064,0.00027461,7]
[336824247,1725192651320,-500.0,0.00027461,15]
[336824248,1725192651330,-393.955064,0.00027461,7]
[336824249,1725192651339,-544.81,0.00027461,15]
[336824250,1725192651356,-151.0,0.00027461,7]
[336824251,1725192651366,-500.0,0.00027461,15]
[336824252,1725192651375,-226.434996,0.00027461,7]
[336824253,1725192651384,-946.89,0.00027461,15]
[336824254,1725192651394,-981.83,0.00027462,15]
[336824255,1725192651403,-500.0,0.00027462,15]
[336824256,1725192651412,-550.78,0.00027462,15]
[336824257,1725192651422,-500.0,0.00027462,15]
[336824258,1725192651431,-740.94,0.00027462,15]
[336824259,1725192651441,-500.0,0.00027462,15]
[336824260,1725192651450,-885.34,0.00027462,15]
[336824261,1725192651459,-151.0,0.00027462,7]
[336824262,1725192651468,-151.0,0.00027462,7]
[336824263,1725192651478,-151.0,0.00027462,7]
[336824264,1725192651487,-658.94,0.00027462,15]
[336824265,1725192651496,-500.0,0.00027462,15]
[336824266,1725192651505,-151.0,0.00027462,7]
[336824267,1725192651514,-500.0,0.00027462,15]
[336824268,1725192651525,-245.961517,0.00027462,2]
[336824269,1725192651535,-570.52,0.00027462,15]
[336824270,1725192651545,-502.06,0.00027462,15]
[336824271,1725192651555,-1340.91,0.00027462,15]
[336824272,1725192651565,-151.0,0.00027462,7]
[336824273,1725192651578,-500.0,0.00027462,15]
[336824274,1725192651587,-151.0,0.00027462,7]
[336824275,1725192651598,-500.0,0.00027462,15]
[336824276,1725192651607,-3161.41,0.00027462,15]
[336824277,1725192651618,-500.0,0.00027462,15]
[336824278,1725192651628,-500.0,0.00027462,15]
[336824279,1725192651639,-500.0,0.00027462,15]
[336824280,1725192651650,-526.73,0.00027462,15]
[336824281,1725192651660,-255.64692304,0.00027462,15]
[336824282,1725192651669,-1089.79,0.00027462,15]
[336824283,1725192651679,-500.0,0.00027462,15]
[336824284,1725192651689,-590.52,0.00027462,15]
[336824285,1725192651698,-500.0,0.00027462,15]
[336824286,1725192651708,-588.48,0.00027462,15]
[336824287,1725192651718,-1007.91,0.00027462,15]
[336824288,1725192651729,-1497.44,0.00027462,15]
[336824289,1725192651739,-500.0,0.00027462,15]
[336824290,1725192651751,-2694.9,0.00027462,15]
[336824291,1725192651761,-6376.52,0.00027462,15]
[336824292,1725192651802,-574.38,0.00027462,15]
[336824293,1725192651811,-559.85,0.00027462,15]
[336824294,1725192651821,-1097.2,0.00027462,15]
[336824295,1725192651830,-500.0,0.00027462,15]
[336824296,1725192651846,-500.0,0.00027462,15]
[336824297,1725192651856,-541.79,0.00027462,15]
[336824298,1725192651865,-500.0,0.00027462,15]
[336824299,1725192651874,-503.65695092,0.00027462,15]
[336824300,1725192651885,-532.06,0.00027462,15]
[336824301,1725192651897,-582.76,0.00027462,15]
[336824302,1725192651907,-500.0,0.00027462,15]
[336824303,1725192651918,-557.59,0.00027462,15]
[336824304,1725192651928,-684.32,0.00027462,15]
[336824305,1725192651938,-500.0,0.00027463,15]
[336824306,1725192651946,-151.0,0.00027463,7]
[336824307,1725192651956,-151.0,0.00027463,7]
[336824308,1725192651966,-500.0,0.00027463,15]
[336824309,1725192651976,-622.73,0.00027463,15]
[336824310,1725192651985,-151.0,0.00027463,7]
[336824311,1725192651994,-151.417067,0.00027463,7]
[336824312,1725192652003,-742.03,0.00027463,15]
[336824313,1725192652013,-500.0,0.00027463,15]
[336824314,1725192652024,-500.0,0.00027463,15]
[336824315,1725192652035,-500.0,0.00027463,15]
[336824316,1725192652047,-899.31,0.00027463,15]
[336824317,1725192652058,-2416.89,0.00027463,15]
[336824318,1725192652067,-500.0,0.00027463,15]
[336824319,1725192652076,-500.0,0.00027463,15]
[336824320,1725192652085,-500.0,0.00027463,15]
[336824321,1725192652094,-500.0,0.00027463,15]
[336824322,1725192652104,-1489.35,0.00027463,15]
[336824323,1725192652113,-775.25,0.00027463,15]
[336824324,1725192652122,-823.45,0.00027463,15]
[336824325,1725192652132,-1562.51,0.00027463,15]
[336824326,1725192652141,-567.23,0.00027463,15]
[336824327,1725192652150,-1007.33,0.00027463,15]
[336824328,1725192652163,-640.88,0.00027463,15]
[336824329,1725192652173,-915.62,0.00027463,15]
[336824330,1725192652183,-500.0,0.00027464,15]
[336824331,1725192652192,-500.0,0.00027464,15]
[336824332,1725192652201,-500.0,0.00027464,15]
[336824333,1725192652210,-500.0,0.00027464,15]
[336824334,1725192652220,-500.0,0.00027464,7]
[336824335,1725192652230,-736.33,0.00027464,15]
[336824336,1725192652240,-268.050289,0.00027464,7]
[336824337,1725192652249,-500.0,0.00027464,15]
[336824338,1725192652258,-500.0,0.00027464,15]
[336824339,1725192652267,-381.333211,0.00027464,7]
[336824340,1725192652279,-381.333211,0.00027464,7]
[336824341,1725192652290,-500.0,0.00027464,15]
[336824342,1725192652301,-622.79,0.00027464,15]
[336824343,1725192652311,-859.61,0.00027464,15]
[336824344,1725192652323,-831.63,0.00027464,14]
[336824345,1725192652333,-681.9,0.00027464,7]
[336824346,1725192652347,-500.0,0.00027464,15]
[336824347,1725192652357,-500.0,0.00027464,15]
[336824348,1725192652367,-500.0,0.00027464,15]
[336824349,1725192652375,-1070.57,0.00027464,15]
[336824350,1725192652384,-500.0,0.00027464,15]